bitfinex/quotes_BTCUSD_20230114
["timestamp","ask_amount","ask_price","bid_price","bid_amount"]
[1673694657947,0.25336423,20707.0,20699.0,0.59520169]
[1673694657948,0.25336423,20707.0,20701.0,0.47720169]
[1673694658193,2.68e-06,20701.0,20700.0,0.583091]
[1673694658459,0.14107385,20715.0,20705.0,0.1]
[1673694658763,0.14107385,20715.0,20706.0,0.213454]
[1673694658977,0.14107385,20715.0,20709.0,0.118]
[1673694659284,0.50419339,20723.0,20710.0,0.31341]
[1673694659530,0.02383747,20724.0,20716.0,0.47720169]
[1673694659738,0.02548558,20725.0,20719.0,0.118]
[1673694659739,0.0015,20725.0,20719.0,0.118]
[1673694660027,0.0015,20725.0,20720.0,0.79789369]
[1673694660249,0.02185552,20725.0,20721.0,0.68048169]
[1673694660492,0.04,20728.0,20724.0,0.46720169]
[1673694660751,0.0001,20730.0,20727.0,0.47720169]
[1673694660986,0.0001,20730.0,20729.0,0.47720169]
[1673694661253,0.70997778,20739.0,20730.0,0.1]
[1673694661254,0.01649225,20734.0,20730.0,0.1]
[1673694661505,0.01649225,20734.0,20731.0,0.79770969]
[1673694661895,0.01649225,20734.0,20730.0,0.1]
[1673694661896,0.01649225,20734.0,20733.0,0.47720169]
[1673694662010,0.01649225,20734.0,20732.0,0.2032]
[1673694662270,0.01649225,20734.0,20733.0,1.06121385]
[1673694662271,0.00649225,20734.0,20733.0,1.06121385]
[1673694662526,0.10997778,20739.0,20735.0,0.00115845]
[1673694662775,0.09997778,20739.0,20735.0,0.67760852]
[1673694663015,0.09997778,20739.0,20738.0,0.47386564]
[1673694663272,0.09997778,20739.0,20733.0,0.0085]
[1673694663273,0.05167798,20739.0,20733.0,0.0085]
[1673694663525,0.6,20734.0,20732.0,0.359333]
[1673694663786,0.6,20734.0,20722.0,0.1]
[1673694663787,0.27496495,20733.0,20722.0,0.1]
[1673694664046,0.27496495,20733.0,20716.0,0.118]
[1673694664047,0.6,20728.0,20716.0,0.28523156]
[1673694664356,0.6,20728.0,20705.0,0.1829]
[1673694664357,0.6,20722.0,20706.0,0.74870318]
[1673694664596,0.6,20722.0,20712.0,0.37244846]
[1673694664597,0.19072595,20717.0,20712.0,0.37244846]
[1673694664849,0.19072595,20717.0,20709.0,0.47720169]
[1673694665093,0.19072595,20717.0,20710.0,0.00019]
[1673694665094,0.20096495,20716.0,20710.0,0.00019]
[1673694665345,0.20096495,20715.0,20710.0,0.00019]
[1673694665596,0.20096495,20715.0,20705.0,0.20242645]
[1673694665597,0.6,20712.0,20705.0,0.20242645]
[1673694665923,1.06792764,20714.0,20705.0,0.20242645]
[1673694665924,0.67816664,20711.0,20705.0,0.20242645]
[1673694666131,1.07720169,20709.0,20705.0,0.20242645]
[1673694666371,1.07720169,20706.0,20691.0,0.02049997]
[1673694666614,0.6,20701.0,20691.0,0.02049997]
[1673694666876,0.6,20701.0,20692.0,0.26694182]
[1673694666877,0.6,20696.0,20692.0,0.26694182]
[1673694667126,0.6,20696.0,20675.0,0.483665]
[1673694667127,1.31176329,20695.0,20691.0,0.20829243]
[1673694667382,0.19072595,20695.0,20692.0,0.70838505]
[1673694667620,0.04869331,20700.0,20696.0,0.76090988]
[1673694667621,0.18968002,20700.0,20696.0,0.76090988]
[1673694667872,0.47302562,20702.0,20696.0,0.76065988]
[1673694668119,0.02063,20697.0,20696.0,0.76065988]
[1673694668623,0.02063,20697.0,20696.0,0.90456717]
[1673694668624,0.030869,20697.0,20696.0,0.90456717]
[1673694668874,0.1,20702.0,20696.0,0.90431717]
[1673694669123,0.02063,20697.0,20696.0,0.90431717]
[1673694669409,0.02063,20697.0,20686.0,0.22751383]
[1673694669410,0.69502,20696.0,20686.0,0.22751383]
[1673694669640,0.6,20693.0,20686.0,0.22751383]
[1673694669881,1.566532,20693.0,20686.0,0.22751383]
[1673694670132,0.010239,20692.0,20686.0,0.22751383]
[1673694670385,0.69502,20696.0,20686.0,0.27620714]
[1673694670386,0.02063,20693.0,20686.0,0.27620714]
[1673694670650,0.483044,20703.0,20686.0,0.04869331]
[1673694670924,0.70324683,20700.0,20686.0,0.04869331]
[1673694671156,0.0002,20691.0,20687.0,0.66792764]
[1673694671405,0.1,20706.0,20692.0,0.00034331]
[1673694671658,0.482981,20705.0,20694.0,0.0006]
[1673694671916,0.47435126,20707.0,20694.0,0.0091]
[1673694671917,0.35,20707.0,20694.0,0.0091]
[1673694672152,0.35,20707.0,20695.0,0.320757]
[1673694672408,0.39732362,20706.0,20697.0,0.47720169]
[1673694672668,0.39732362,20706.0,20698.0,0.99713664]
[1673694672669,0.0002,20704.0,20698.0,0.99713664]
[1673694672943,0.0002,20704.0,20695.0,0.22664939]
[1673694672944,0.16826753,20704.0,20695.0,0.22664939]
[1673694673186,0.0002,20704.0,20698.0,0.483122]
[1673694673409,0.0002,20704.0,20700.0,0.6]
[1673694673654,0.0002,20704.0,20701.0,0.21234]
[1673694673911,0.0002,20704.0,20702.0,0.320708]
[1673694674146,0.0002,20704.0,20703.0,0.203819]
[1673694674396,0.0002,20704.0,20703.0,0.68952069]
[1673694674660,0.48276,20715.0,20703.0,0.88024664]
[1673694674914,0.19302278,20714.0,20710.0,0.47720169]
[1673694675158,0.19302278,20714.0,20711.0,0.39444895]
[1673694675411,0.01930228,20714.0,20711.0,0.19072595]
[1673694675662,1.10807069,20713.0,20701.0,0.23706703]
[1673694675903,0.02063,20703.0,20698.0,0.24279539]
[1673694676154,0.010239,20702.0,20698.0,0.24279539]
[1673694676397,0.16806753,20701.0,20698.0,0.24279539]
[1673694676653,0.16806753,20700.0,20698.0,0.24279539]
[1673694676907,0.17830653,20699.0,20698.0,0.24279539]
[1673694677182,0.17830653,20699.0,20696.0,0.00189639]
[1673694677184,0.47830653,20699.0,20696.0,0.00189639]
[1673694677409,0.75120553,20698.0,20696.0,0.00189639]
[1673694677664,0.084239,20697.0,20696.0,0.00189639]
[1673694677912,0.5674,20697.0,20696.0,0.00189639]
[1673694678411,0.010239,20697.0,20696.0,0.00189639]
[1673694678684,0.26828817,20701.0,20691.0,0.00019]
[1673694678935,0.3715377,20700.0,20692.0,0.66792764]
[1673694679181,0.3715377,20700.0,20696.0,0.47720169]
[1673694679182,0.25514619,20698.0,20696.0,0.47720169]
[1673694679430,0.25514619,20698.0,20697.0,0.89795869]
[1673694679700,0.25514619,20698.0,20697.0,0.90645869]
[1673694679951,0.18770212,20699.0,20698.0,0.44255027]
[1673694680199,0.09277021,20699.0,20698.0,0.64646227]
[1673694680456,0.09277021,20699.0,20678.0,3.2003397]
[1673694680457,0.24422783,20699.0,20678.0,3.2003397]
[1673694680702,0.0021603,20695.0,20689.0,0.66982403]
[1673694680946,0.0021603,20695.0,20689.0,0.00189639]
[1673694680947,0.65131753,20694.0,20689.0,0.00189639]
[1673694681191,0.17830653,20693.0,20689.0,0.00189639]
[1673694681440,0.16806753,20692.0,20689.0,0.00189639]
[1673694681690,0.0021603,20693.0,20689.0,0.00189639]
[1673694681691,0.16806753,20691.0,20689.0,0.00189639]
[1673694681923,0.24771683,20690.0,20689.0,0.00189639]
[1673694682164,0.0796493,20690.0,20689.0,0.00189639]
[1673694682670,0.5629743,20690.0,20689.0,0.00189639]
[1673694682920,1.0462993,20690.0,20689.0,0.00189639]
[1673694683163,1.25185232,20690.0,20689.0,0.00189639]
[1673694683407,1.0462993,20690.0,20689.0,0.00189639]
[1673694683912,0.70523038,20690.0,20689.0,0.00189639]
[1673694684157,0.483468,20692.0,20688.0,0.18919855]
[1673694684158,0.25191444,20691.0,20688.0,0.16609494]
[1673694684408,0.00017,20692.0,20689.0,0.66792764]
[1673694684656,0.00017,20692.0,20690.0,0.66792764]
[1673694684906,0.00017,20692.0,20691.0,0.79795869]
[1673694685171,0.18907052,20692.0,20691.0,0.320757]
[1673694685407,0.18907052,20692.0,20689.0,0.15]
[1673694685647,0.35713805,20692.0,20689.0,0.15]
[1673694685939,0.0694103,20690.0,20689.0,0.15]
[1673694686193,0.83104183,20690.0,20689.0,0.15]
[1673694686444,0.6629743,20690.0,20689.0,0.15]
[1673694686720,0.22153323,20697.0,20689.0,0.81792764]
[1673694686944,0.1822,20710.0,20689.0,0.81792764]
[1673694686945,0.0021603,20701.0,20693.0,0.47720169]
[1673694687212,0.0021603,20701.0,20694.0,0.49479695]
[1673694687213,0.20526846,20699.0,20694.0,0.49479695]
[1673694687464,0.1,20706.0,20694.0,0.49479695]
[1673694687465,0.47615869,20710.0,20698.0,0.47720169]
[1673694687710,0.47615869,20710.0,20695.0,0.51139595]
[1673694687711,0.35,20710.0,20702.0,0.66772764]
[1673694687951,5.0991725,20720.0,20703.0,0.51998295]
[1673694687952,0.97457718,20719.0,20703.0,0.51998295]
[1673694688206,0.0021603,20707.0,20704.0,0.39446095]
[1673694688453,0.0021603,20705.0,20702.0,0.25441574]
[1673694688717,0.65341783,20705.0,20702.0,0.25441574]
[1673694688976,0.010239,20704.0,20702.0,0.25441574]
[1673694689219,0.483018,20704.0,20702.0,0.25441574]
[1673694689486,0.483018,20704.0,20699.0,0.19681499]
[1673694689725,0.16826753,20703.0,20698.0,0.00019]
[1673694689966,0.0021603,20700.0,20698.0,0.00019]
[1673694690215,0.16826753,20699.0,20698.0,0.00019]
[1673694690473,1.14473653,20699.0,20698.0,0.00019]
[1673694690972,1.74773641,20699.0,20698.0,0.00019]
[1673694691222,0.1,20698.0,20690.0,1.14210936]
[1673694691460,0.0019703,20692.0,20690.0,1.39221731]
[1673694691721,0.17850653,20691.0,20690.0,1.14210936]
[1673694691949,0.65156853,20691.0,20690.0,1.14210936]
[1673694692189,0.4852713,20692.0,20691.0,0.21077677]
[1673694692438,0.0019703,20692.0,20691.0,0.21077677]
[1673694692686,0.483252,20694.0,20690.0,1.14210936]
[1673694692687,0.0019703,20694.0,20690.0,1.14210936]
[1673694692959,0.0019703,20694.0,20690.0,1.810037]
[1673694693185,0.483214,20695.0,20693.0,0.20914433]
[1673694693489,0.73719616,20694.0,20691.0,0.26193739]
[1673694693734,0.73719616,20694.0,20690.0,1.14210936]
[1673694693735,0.0002,20694.0,20690.0,1.14210936]
[1673694693994,0.483179,20697.0,20694.0,0.07351961]
[1673694693995,0.0019703,20697.0,20694.0,0.07351961]
[1673694694228,0.4851543,20697.0,20694.0,0.07351961]
[1673694694467,0.68511346,20697.0,20694.0,0.07351961]
[1673694694724,0.20955927,20696.0,20694.0,0.07351961]
[1673694695219,0.69276127,20696.0,20694.0,0.07351961]
[1673694695536,0.63849954,20696.0,20694.0,0.07351961]
[1673694695723,0.077489,20695.0,20694.0,0.07351961]
[1673694695978,0.483202,20696.0,20694.0,0.07351961]
[1673694696308,0.0019703,20697.0,20695.0,0.40496123]
[1673694696482,0.0002,20698.0,20696.0,0.320757]
[1673694696734,0.06745,20698.0,20697.0,0.20394]
[1673694697001,0.06745,20698.0,20695.0,0.21423528]
[1673694697002,0.550596,20698.0,20695.0,0.21423528]
[1673694697235,0.0692203,20696.0,20695.0,0.21423528]
[1673694697476,0.0794593,20696.0,20694.0,0.07351961]
[1673694697741,1.60682284,20696.0,20694.0,0.07351961]
[1673694698012,0.030869,20695.0,20694.0,0.07351961]
[1673694698238,0.23278654,20695.0,20694.0,0.07351961]
[1673694698478,0.1,20694.0,20692.0,0.00019]
[1673694698732,0.1,20692.0,20683.0,0.00142889]
[1673694698989,0.1,20692.0,20683.0,0.22984998]
[1673694698990,0.12063,20690.0,20683.0,0.22984998]
[1673694699227,0.28813684,20690.0,20687.0,0.00019]
[1673694699482,0.0794593,20690.0,20687.0,0.00019]
[1673694699975,0.0794593,20690.0,20687.0,0.20858459]
[1673694700246,0.0794593,20690.0,20688.0,0.23131393]
[1673694700471,0.0794593,20690.0,20687.0,0.00019]
[1673694700728,0.3794593,20690.0,20687.0,0.00019]
[1673694700953,0.1794593,20690.0,20683.0,0.00142889]
[1673694701205,0.1794593,20690.0,20683.0,0.20199845]
[1673694701463,0.15,20689.0,20683.0,0.00142889]
[1673694701712,0.15,20689.0,20688.0,0.00142889]
[1673694701964,0.53899186,20689.0,20688.0,0.00142889]
[1673694702203,0.53899186,20689.0,20688.0,0.21398701]
[1673694702204,0.0122093,20689.0,20688.0,0.21398701]
[1673694702452,1.16418893,20689.0,20688.0,0.21398701]
[1673694702695,1.17442793,20689.0,20688.0,0.21398701]
[1673694702935,0.9789053,20689.0,20688.0,0.21398701]
[1673694703230,1.14577853,20689.0,20688.0,0.21398701]
[1673694703487,1.14577853,20689.0,20683.0,0.00142889]
[1673694703488,1.15483284,20689.0,20683.0,0.00142889]
[1673694703751,0.0692203,20684.0,20683.0,0.00142889]
[1673694704003,0.9791393,20684.0,20683.0,0.00142889]
[1673694705026,0.9791393,20684.0,20683.0,0.20278441]
[1673694705027,0.9689003,20684.0,20683.0,0.20278441]
[1673694705268,0.4854353,20684.0,20683.0,0.00132391]
[1673694705524,0.4854353,20684.0,20683.0,0.19104544]
[1673694705769,0.0019703,20684.0,20683.0,0.19104544]
[1673694706035,0.4852803,20691.0,20683.0,0.67775155]
[1673694706250,0.74902823,20691.0,20684.0,0.68233854]
[1673694706495,0.22997709,20690.0,20686.0,0.1]
[1673694706736,0.0002,20689.0,20687.0,0.204235]
[1673694706993,0.0002,20689.0,20688.0,1.09713564]
[1673694707485,0.0002,20689.0,20688.0,0.429208]
[1673694708481,0.1955172,20692.0,20688.0,0.320708]
[1673694708482,0.26366131,20691.0,20688.0,0.320708]
[1673694708776,0.26366131,20691.0,20689.0,0.204214]
[1673694709049,0.74696631,20691.0,20688.0,0.21329499]
[1673694709294,0.63589589,20701.0,20690.0,0.47720169]
[1673694709295,0.73257455,20696.0,20690.0,0.47720169]
[1673694709541,0.70486549,20696.0,20691.0,0.52016695]
[1673694709786,0.74611837,20697.0,20692.0,0.39440995]
[1673694710043,0.74611837,20697.0,20691.0,0.0085]
[1673694710044,0.74611837,20697.0,20693.0,0.29072595]
[1673694710283,0.26294337,20697.0,20694.0,0.51166695]
[1673694710524,0.0019703,20694.0,20693.0,0.29072595]
[1673694710766,0.0019703,20694.0,20691.0,0.0085]
[1673694711005,0.346714,20694.0,20691.0,0.0085]
[1673694711273,0.346714,20694.0,20688.0,0.483548]
[1673694711274,0.15726784,20694.0,20688.0,0.00019]
[1673694711492,0.15529754,20693.0,20688.0,0.66811764]
[1673694711761,0.15529754,20693.0,20689.0,0.79623669]
[1673694712010,0.18896775,20695.0,20690.0,0.1]
[1673694712329,0.18896775,20695.0,20691.0,0.203732]
[1673694712517,0.483389,20696.0,20692.0,0.320889]
[1673694712768,0.21075073,20702.0,20693.0,0.212211]
[1673694713043,0.23829668,20705.0,20695.0,0.5980297]
[1673694713259,0.3519703,20707.0,20697.0,0.47720169]
[1673694713522,0.38491095,20710.0,20701.0,1.07523139]
[1673694713523,0.02630859,20710.0,20701.0,1.07523139]
[1673694713774,0.02630859,20710.0,20698.0,1.47778795]
[1673694713775,0.02630859,20710.0,20704.0,0.5980297]
[1673694714013,0.02630859,20710.0,20705.0,1.08859564]
[1673694714265,0.0002,20707.0,20706.0,0.87148964]
[1673694714512,0.0002,20707.0,20706.0,0.212062]
[1673694714998,0.20382274,20709.0,20707.0,0.1]
[1673694715236,0.02630859,20710.0,20708.0,0.79782169]
[1673694715484,0.02447734,20713.0,20710.0,0.1]
[1673694715727,0.02447734,20713.0,20711.0,0.99699764]
[1673694715980,0.23431483,20713.0,20712.0,0.203495]
[1673694716245,0.23030248,20712.0,20711.0,0.0085]
[1673694716768,0.0002,20714.0,20712.0,0.07598894]
[1673694717017,0.0002,20714.0,20713.0,0.320941]
[1673694717018,0.06745,20714.0,20713.0,0.320941]
[1673694717283,0.20579821,20712.0,20711.0,0.22787087]
[1673694717529,0.0002,20714.0,20711.0,0.22787087]
[1673694717784,0.0692203,20712.0,20711.0,0.22787087]
[1673694718025,0.0796113,20712.0,20706.0,0.00019]
[1673694718292,0.15529754,20711.0,20706.0,0.00019]
[1673694718538,0.15726784,20710.0,20706.0,0.67862956]
[1673694718822,0.15726784,20710.0,20707.0,0.320941]
[1673694719022,0.0019703,20710.0,20708.0,0.203235]
[1673694719279,0.2541383,20709.0,20706.0,0.25675739]
[1673694719530,0.15529754,20709.0,20707.0,0.34892034]
[1673694719784,0.11205424,20710.0,20708.0,0.320941]
[1673694720025,0.11205424,20710.0,20707.0,0.24892034]
[1673694720283,0.11205424,20710.0,20703.0,0.1]
[1673694720284,0.010391,20709.0,20703.0,0.19301847]
[1673694720525,0.15529754,20708.0,20705.0,0.22948849]
[1673694720775,0.00014,20710.0,20700.0,0.5032]
[1673694720776,0.15529754,20707.0,20700.0,0.5032]
[1673694721042,0.10014,20710.0,20701.0,0.47720169]
[1673694721043,0.15529754,20706.0,20701.0,0.47720169]
[1673694721322,0.15529754,20705.0,20704.0,0.22995784]
[1673694721596,0.482911,20708.0,20705.0,0.2272347]
[1673694721820,0.00014,20710.0,20706.0,0.320876]
[1673694722061,0.00014,20710.0,20700.0,0.1]
[1673694722062,0.503558,20707.0,20700.0,0.1]
[1673694722314,0.503558,20707.0,20699.0,0.20350126]
[1673694722315,0.16568854,20706.0,20699.0,0.20350126]
[1673694722628,0.16568854,20706.0,20698.0,0.00019]
[1673694722629,0.15529754,20705.0,20698.0,0.00019]
[1673694722844,1.73531854,20704.0,20698.0,0.00019]
[1673694723065,0.15529754,20703.0,20698.0,0.00019]
[1673694723375,0.16568854,20702.0,20698.0,0.00019]
[1673694723595,0.16568854,20702.0,20699.0,0.19072595]
[1673694723596,0.483056,20702.0,20699.0,0.19072595]
[1673694723900,0.010391,20701.0,20693.0,0.5189]
[1673694724125,0.483056,20702.0,20695.0,0.2083338]
[1673694724126,0.15529754,20700.0,20695.0,0.2083338]
[1673694724355,0.15529754,20700.0,20693.0,0.70962595]
[1673694724356,1.13193654,20699.0,20693.0,0.19072595]
[1673694724647,0.15529754,20698.0,20685.0,0.6]
[1673694724860,0.26568854,20697.0,20690.0,0.24333877]
[1673694725136,0.966444,20695.0,20686.0,0.19072595]
[1673694725356,0.16568854,20694.0,20687.0,0.25560965]
[1673694725610,0.15529754,20693.0,20688.0,0.25908735]
[1673694725942,1.12185754,20692.0,20688.0,0.25908735]
[1673694726109,0.16568854,20691.0,20688.0,0.25908735]
[1673694726555,0.13872868,20691.0,20688.0,0.25908735]
[1673694726666,0.13872868,20691.0,20685.0,0.25703396]
[1673694726667,0.63244468,20690.0,20685.0,0.25703396]
[1673694726850,0.63244468,20690.0,20684.0,0.0059109]
[1673694726851,0.23872868,20689.0,20684.0,0.0059109]
[1673694727104,0.23872868,20689.0,20684.0,0.48311259]
[1673694727105,0.010391,20688.0,20684.0,0.48311259]
[1673694727357,0.13872868,20689.0,20685.0,0.47720169]
[1673694727643,0.0002,20688.0,20686.0,0.320941]
[1673694727871,0.0002,20688.0,20687.0,0.320941]
[1673694728115,0.0002,20688.0,20685.0,0.1989609]
[1673694728360,0.13892868,20688.0,20685.0,0.1989609]
[1673694728636,0.62230468,20688.0,20685.0,0.1989609]
[1673694728895,0.110391,20687.0,20684.0,0.0059109]
[1673694729163,0.966836,20686.0,20684.0,0.0059109]
[1673694729412,0.966836,20686.0,20684.0,0.00574948]
[1673694729413,0.077641,20685.0,20684.0,0.00574948]
[1673694729638,0.29556074,20685.0,20684.0,0.00574948]
[1673694729881,0.67900274,20685.0,20684.0,0.00574948]
[1673694730395,0.61175274,20685.0,20684.0,0.19647543]
[1673694730637,0.11791974,20685.0,20684.0,0.00574948]
[1673694731137,0.966841,20686.0,20684.0,0.00574948]
[1673694731388,0.077641,20685.0,20684.0,0.00574948]
[1673694731627,0.177641,20685.0,20684.0,0.00574948]
[1673694732382,0.198271,20685.0,20684.0,0.00574948]
[1673694732885,0.498271,20685.0,20684.0,0.00574948]
[1673694733129,0.981713,20685.0,20684.0,0.00574948]
[1673694734372,0.1,20684.0,20682.0,0.06117168]
[1673694734643,0.53872868,20684.0,20682.0,0.06117168]
[1673694734889,1.560855,20683.0,20682.0,0.06117168]
[1673694735134,1.860855,20683.0,20682.0,0.06117168]
[1673694735422,1.560855,20683.0,20682.0,0.06117168]
[1673694735672,1.67916403,20683.0,20682.0,0.06117168]
[1673694735926,1.881485,20683.0,20682.0,0.06117168]
[1673694736165,0.06108832,20682.0,20681.0,0.00202905]
[1673694736419,0.54460032,20682.0,20681.0,0.00202905]
[1673694736669,0.55499132,20682.0,20681.0,0.00202905]
[1673694736894,0.85499132,20682.0,20681.0,0.00202905]
[1673694737167,0.87562132,20682.0,20679.0,0.00070876]
[1673694737428,0.3,20681.0,20679.0,0.00070876]
[1673694737733,1.561065,20680.0,20679.0,0.00070876]
[1673694737925,1.861065,20680.0,20679.0,0.00070876]
[1673694738672,0.1,20679.0,20677.0,0.00229958]
[1673694738925,0.02063,20678.0,20677.0,0.00229958]
[1673694739168,1.481836,20678.0,20677.0,9.958e-05]
[1673694739411,1.781836,20678.0,20676.0,0.00202905]
[1673694739656,0.1,20677.0,20676.0,0.00202905]
[1673694739926,0.110391,20677.0,20676.0,0.00202905]
[1673694740184,0.59402,20677.0,20676.0,0.00202905]
[1673694741389,0.89402,20677.0,20676.0,0.00202905]
[1673694741881,0.49402,20677.0,20676.0,0.00202905]
[1673694742396,0.61990761,20677.0,20676.0,0.00202905]
[1673694742635,0.483605,20678.0,20676.0,0.41325454]
[1673694742882,0.0002,20678.0,20677.0,0.320941]
[1673694743210,0.0002,20678.0,20677.0,0.51166695]
[1673694743393,0.12719481,20681.0,20678.0,0.0004]
[1673694743640,0.12597836,20680.0,20679.0,0.204074]
[1673694743901,0.833398,20687.0,20679.0,0.51162995]
[1673694744158,0.10533051,20686.0,20680.0,0.66792764]
[1673694744421,0.10553051,20686.0,20681.0,0.98886864]
[1673694744663,0.10553051,20686.0,20682.0,0.49469295]
[1673694744938,0.13872868,20685.0,20683.0,0.320908]
[1673694745229,0.13872868,20685.0,20678.0,0.2414165]
[1673694745230,0.010391,20684.0,20678.0,0.2414165]
[1673694745418,0.13872868,20683.0,20678.0,0.0004]
[1673694745674,0.24911968,20682.0,20678.0,0.0004]
[1673694745915,0.13872868,20681.0,20678.0,0.0004]
[1673694746157,0.010391,20680.0,20678.0,0.0004]
[1673694746398,0.967116,20680.0,20679.0,0.20808262]
[1673694746637,0.977507,20680.0,20678.0,0.0004]
[1673694746906,0.977507,20680.0,20679.0,0.26255547]
[1673694746907,0.96653515,20680.0,20679.0,0.26255547]
[1673694747187,0.483465,20684.0,20679.0,0.45328142]
[1673694747433,0.483465,20684.0,20682.0,0.2109624]
[1673694747686,0.483448,20685.0,20682.0,0.40168835]
[1673694747920,0.5979538,20685.0,20682.0,0.40168835]
[1673694748400,0.1145058,20685.0,20682.0,0.40168835]
[1673694748636,0.48363,20686.0,20682.0,0.40168835]
[1673694748637,0.58520183,20686.0,20682.0,0.40168835]
[1673694749133,0.1030695,20685.0,20682.0,0.40168835]
[1673694749382,0.09794001,20683.0,20680.0,0.2176761]
[1673694749625,0.23666869,20683.0,20680.0,0.2176761]
[1673694749913,0.23666869,20683.0,20678.0,0.0004]
[1673694749914,0.13872868,20682.0,20678.0,0.0004]
[1673694750293,0.62296292,20690.0,20678.0,0.0004]
[1673694750294,0.16974968,20681.0,20678.0,0.0004]
[1673694750466,0.1,20679.0,20678.0,0.0004]
[1673694750660,0.53372868,20679.0,20678.0,0.0004]
[1673694750904,1.861137,20679.0,20678.0,0.0004]
[1673694751405,2.0976677,20679.0,20678.0,0.0004]
[1673694751659,2.0976677,20679.0,20676.0,0.00221905]
[1673694751909,0.02063,20677.0,20676.0,0.00202905]
[1673694752163,0.077641,20677.0,20676.0,0.23531458]
[1673694752399,1.044899,20677.0,20676.0,0.00202905]
[1673694753397,1.14976708,20677.0,20676.0,0.00202905]
[1673694753672,1.044899,20677.0,20676.0,0.00202905]
[1673694754178,1.344899,20677.0,20676.0,0.00202905]
[1673694754449,1.6861117,20677.0,20676.0,0.00202905]
[1673694754696,1.6861117,20677.0,20675.0,0.00234883]
[1673694754697,0.1,20676.0,20675.0,0.00234883]
[1673694754952,0.4,20676.0,20675.0,0.00234883]
[1673694755199,0.1,20675.0,20672.0,0.00259776]
[1673694755700,0.883652,20676.0,20673.0,0.2376223]
[1673694755701,0.483652,20676.0,20673.0,0.2376223]
[1673694755954,0.2656693,20674.0,20673.0,0.18466149]
[1673694756198,0.2656693,20674.0,20671.0,0.00259776]
[1673694756199,0.2656693,20674.0,20671.0,0.26421666]
[1673694756491,0.45639525,20674.0,20671.0,0.26421666]
[1673694756698,0.483852,20676.0,20672.0,0.22962374]
[1673694756958,1.19745124,20676.0,20672.0,0.41428523]
[1673694757208,0.0002,20676.0,20672.0,0.18466149]
[1673694757457,0.0002,20676.0,20672.0,0.23662938]
[1673694757458,0.39854256,20676.0,20672.0,0.23662938]
[1673694757717,0.2623503,20674.0,20672.0,0.23662938]
[1673694757977,0.2623503,20674.0,20671.0,0.00259776]
[1673694758237,0.67442595,20674.0,20671.0,0.00259776]
[1673694758488,0.35,20684.0,20674.0,0.02623502]
[1673694758738,0.35,20684.0,20675.0,2.12578489]
[1673694758987,0.35,20684.0,20676.0,1.34963418]
[1673694759245,0.61077715,20684.0,20677.0,0.50556949]
[1673694759473,0.61077715,20684.0,20675.0,1.62664671]
[1673694759474,0.19072595,20683.0,20678.0,0.38877249]
[1673694759748,0.20042799,20679.0,20678.0,0.18466149]
[1673694759995,0.2333046,20678.0,20675.0,1.14298071]
[1673694760273,0.19072595,20678.0,20675.0,1.14298071]
[1673694760499,0.583512,20682.0,20676.0,0.320941]
[1673694760500,0.483548,20681.0,20676.0,0.320941]
[1673694760747,0.26202713,20681.0,20677.0,0.38877349]
[1673694761000,0.4837,20683.0,20678.0,0.50556649]
[1673694761254,0.0002,20683.0,20679.0,0.18466149]
[1673694761494,0.65471673,20689.0,20678.0,0.47720169]
[1673694761495,0.26757198,20686.0,20680.0,1.16305149]
[1673694761735,0.26757198,20686.0,20681.0,0.50565149]
[1673694761995,0.85602342,20689.0,20682.0,0.38838349]
[1673694761996,0.24077857,20687.0,20682.0,0.38838349]
[1673694762246,0.26525486,20686.0,20683.0,0.50561949]
[1673694762497,0.26525486,20686.0,20681.0,0.483528]
[1673694762752,0.18860506,20684.0,20681.0,0.18466149]
[1673694762998,0.4834,20687.0,20680.0,0.5574]
[1673694763253,0.0002,20685.0,20682.0,0.1]
[1673694763496,0.0002,20685.0,20683.0,0.32099]
[1673694763744,0.0002,20685.0,20684.0,0.203669]
[1673694764022,0.0002,20685.0,20684.0,0.32099]
[1673694764759,0.0002,20685.0,20682.0,0.36315127]
[1673694765008,0.0002,20685.0,20682.0,0.36190879]
[1673694765263,0.0002,20685.0,20684.0,0.1]
[1673694765505,0.0002,20685.0,20684.0,0.303669]
[1673694765799,0.23993142,20687.0,20684.0,0.39471149]
[1673694766052,0.23993142,20687.0,20681.0,0.48353]
[1673694766053,0.19753872,20686.0,20681.0,0.48353]
[1673694766324,0.01,20684.0,20680.0,0.5574]
[1673694766574,0.20129695,20683.0,20680.0,0.5574]
[1673694766809,0.19072595,20682.0,20679.0,0.00019]
[1673694767063,0.010571,20681.0,20679.0,0.23011548]
[1673694767313,0.010571,20681.0,20675.0,1.68838071]
[1673694767314,0.01013,20684.0,20678.0,0.483596]
[1673694767550,0.20085595,20684.0,20680.0,0.47720169]
[1673694767793,0.01013,20684.0,20681.0,1.28838124]
[1673694768058,0.01013,20684.0,20683.0,0.19671569]
[1673694768809,0.07738,20684.0,20683.0,0.19671569]
[1673694769061,0.25994538,20683.0,20679.0,0.23348144]
[1673694769337,0.25994538,20683.0,20678.0,0.23543246]
[1673694769338,0.30129695,20682.0,20678.0,0.23543246]
[1673694769540,0.19072595,20681.0,20678.0,0.23543246]
[1673694769785,1.15780595,20681.0,20678.0,0.23543246]
[1673694770069,1.15780595,20681.0,20678.0,0.00019]
[1673694770288,0.110571,20680.0,20678.0,0.00019]
[1673694770573,0.561403,20679.0,20678.0,0.00019]
[1673694770781,0.561403,20679.0,20677.0,0.96759099]
[1673694771027,0.561403,20679.0,20675.0,1.37829545]
[1673694771028,0.8039148,20679.0,20675.0,1.37829545]
[1673694771269,0.110571,20678.0,20675.0,1.14298071]
[1673694771576,0.29072595,20678.0,20675.0,1.14298071]
[1673694771823,0.73028564,20679.0,20676.0,0.96754593]
[1673694772084,0.483562,20680.0,20677.0,0.20960219]
[1673694772325,0.74255749,20680.0,20677.0,0.37787468]
[1673694772818,0.74255749,20680.0,20677.0,0.19321319]
[1673694773321,0.02063,20678.0,20669.0,0.14280668]
[1673694773561,0.02063,20673.0,20669.0,0.00244789]
[1673694773803,0.67849864,20677.0,20670.0,0.20934328]
[1673694773804,0.20129695,20672.0,20670.0,0.20934328]
[1673694774110,0.19072595,20671.0,20669.0,0.00244789]
[1673694774342,1.078155,20670.0,20669.0,0.00244789]
[1673694774591,1.26888095,20670.0,20669.0,0.00244789]
[1673694775340,1.078155,20670.0,20669.0,0.00244789]
[1673694776563,1.336788,20670.0,20669.0,0.00244789]
[1673694777354,1.3406524,20670.0,20669.0,0.00244789]